[Event "*** MasterClass Titled Tuesday Blitz"]
[Site "Chess.com"]
[Date "2017.07.04"]
[Round "1"]
[White "GM_dmitrij"]
[Black "stefanodinn"]
[Result "1-0"]
[WhiteElo "2511"]
[BlackElo "2252"]
[TimeControl "180+2"]
[EndTime "13:07:00 PDT"]
[Termination "GM_dmitrij won by resignation"]

1. e4 {[%clk 0:03:01.9]} 1... e5 {[%clk 0:02:54.1]} 2. Nf3 {[%clk 0:03:02.7]}
2... Nc6 {[%clk 0:02:54.8]} 3. Bb5 {[%clk 0:03:03.4]} 3... a6 {[%clk 0:02:55.4]}
4. Ba4 {[%clk 0:03:04.5]} 4... Nf6 {[%clk 0:02:55.6]} 5. O-O {[%clk 0:03:05.6]}
5... Be7 {[%clk 0:02:56.2]} 6. d3 {[%clk 0:03:06.2]} 6... b5 {[%clk 0:02:54]} 7.
Bb3 {[%clk 0:03:07.1]} 7... O-O {[%clk 0:02:46.3]} 8. Nc3 {[%clk 0:03:07.5]}
8... d6 {[%clk 0:02:45.3]} 9. a3 {[%clk 0:03:08.7]} 9... Bg4 {[%clk 0:02:44.4]}
10. Be3 {[%clk 0:03:08.6]} 10... Nd4 {[%clk 0:02:37.7]} 11. Bxd4 {[%clk
0:03:09.6]} 11... exd4 {[%clk 0:02:38.4]} 12. Nd5 {[%clk 0:03:11.2]} 12... c5
{[%clk 0:02:28.3]} 13. h3 {[%clk 0:03:06]} 13... Be6 {[%clk 0:02:21.4]} 14.
Nxf6+ {[%clk 0:03:00.5]} 14... Bxf6 {[%clk 0:02:22]} 15. Bxe6 {[%clk 0:03:01.2]}
15... fxe6 {[%clk 0:02:22.9]} 16. Qe2 {[%clk 0:02:57.1]} 16... Be7 {[%clk
0:01:54.4]} 17. a4 {[%clk 0:02:49]} 17... Qd7 {[%clk 0:01:53.5]} 18. b3 {[%clk
0:02:45.9]} 18... Rfc8 {[%clk 0:01:40.5]} 19. Nd2 {[%clk 0:02:37.7]} 19... Bf8
{[%clk 0:01:31.2]} 20. Ra2 {[%clk 0:02:32.7]} 20... d5 {[%clk 0:01:27.4]} 21.
Rfa1 {[%clk 0:02:28.4]} 21... b4 {[%clk 0:01:22]} 22. Re1 {[%clk 0:02:27.1]}
22... Re8 {[%clk 0:01:19.1]} 23. Raa1 {[%clk 0:02:12.3]} 23... Rac8 {[%clk
0:01:18.5]} 24. Qg4 {[%clk 0:02:10]} 24... Qf7 {[%clk 0:00:59.7]} 25. Re2 {[%clk
0:02:05.8]} 25... Bd6 {[%clk 0:00:58.6]} 26. Rae1 {[%clk 0:01:50.3]} 26... Qf4
{[%clk 0:00:14.2]} 27. Qxf4 {[%clk 0:01:33.1]} 27... Bxf4 {[%clk 0:00:14.5]} 28.
Nf3 {[%clk 0:01:34.6]} 28... Red8 {[%clk 0:00:09.3]} 29. g3 {[%clk 0:01:34.8]}
29... Bd6 {[%clk 0:00:09]} 30. Ng5 {[%clk 0:01:34.5]} 30... dxe4 {[%clk
0:00:03.7]} 31. Rxe4 {[%clk 0:01:30.1]} 31... e5 {[%clk 0:00:04.9]} 32. Nf3
{[%clk 0:01:31.1]} 32... Re8 {[%clk 0:00:05]} 33. Nxe5 {[%clk 0:01:31.9]} 1-0

[Event "*** MasterClass Titled Tuesday Blitz"]
[Site "Chess.com"]
[Date "2017.07.04"]
[Round "1"]
[White "maciek_92"]
[Black "catalin009"]
[Result "1-0"]
[WhiteElo "2551"]
[BlackElo "2277"]
[TimeControl "180+2"]
[EndTime "13:07:11 PDT"]
[Termination "maciek_92 won by checkmate"]

1. c4 {[%clk 0:02:52.2]} 1... Nf6 {[%clk 0:02:59]} 2. Nc3 {[%clk 0:02:50.8]}
2... e6 {[%clk 0:02:56.1]} 3. Nf3 {[%clk 0:02:51.3]} 3... d5 {[%clk 0:02:56.2]}
4. e3 {[%clk 0:02:52.8]} 4... Bd6 {[%clk 0:02:52]} 5. b3 {[%clk 0:02:43.1]} 5...
O-O {[%clk 0:02:50]} 6. Bb2 {[%clk 0:02:44.3]} 6... Nbd7 {[%clk 0:02:48.8]} 7.
Qc2 {[%clk 0:02:43.1]} 7... c6 {[%clk 0:02:43.8]} 8. d4 {[%clk 0:02:42.6]} 8...
Qe7 {[%clk 0:02:41.6]} 9. Be2 {[%clk 0:02:40.5]} 9... dxc4 {[%clk 0:02:33.4]}
10. bxc4 {[%clk 0:02:40.6]} 10... e5 {[%clk 0:02:33.6]} 11. O-O {[%clk
0:02:42.4]} 11... Re8 {[%clk 0:02:33.1]} 12. Rfe1 {[%clk 0:02:39.7]} 12... b6
{[%clk 0:02:26.7]} 13. Rad1 {[%clk 0:02:40.3]} 13... Bb7 {[%clk 0:02:27]} 14.
Nh4 {[%clk 0:02:38.2]} 14... g6 {[%clk 0:02:21.5]} 15. Nf3 {[%clk 0:02:39]}
15... Rad8 {[%clk 0:02:08.9]} 16. Bf1 {[%clk 0:02:39.4]} 16... a6 {[%clk
0:02:02.4]} 17. h3 {[%clk 0:02:38.5]} 17... b5 {[%clk 0:02:03.3]} 18. a4 {[%clk
0:02:34.7]} 18... b4 {[%clk 0:02:03]} 19. Ne4 {[%clk 0:02:35.6]} 19... Nxe4
{[%clk 0:02:00.8]} 20. Qxe4 {[%clk 0:02:37.5]} 20... a5 {[%clk 0:01:58.2]} 21.
c5 {[%clk 0:02:37.4]} 21... Bc7 {[%clk 0:01:57.7]} 22. Bc4 {[%clk 0:02:38.4]}
22... Nf6 {[%clk 0:01:54.2]} 23. Qh4 {[%clk 0:02:37.3]} 23... e4 {[%clk
0:01:53.1]} 24. Ng5 {[%clk 0:02:38]} 24... h5 {[%clk 0:01:50.8]} 25. Nxf7 {[%clk
0:02:32.3]} 25... Kg7 {[%clk 0:01:51.9]} 26. Nxd8 {[%clk 0:02:28.9]} 26... Rxd8
{[%clk 0:01:53.8]} 27. f4 {[%clk 0:02:00.8]} 27... exf3 {[%clk 0:01:47.7]} 28.
gxf3 {[%clk 0:02:02.7]} 28... Bc8 {[%clk 0:01:22.2]} 29. d5 {[%clk 0:02:02.4]}
29... Be5 {[%clk 0:01:22.8]} 30. d6 {[%clk 0:02:02.6]} 30... Qe8 {[%clk
0:01:23.9]} 31. Bd4 {[%clk 0:02:01.3]} 31... Bf5 {[%clk 0:01:22.3]} 32. f4
{[%clk 0:01:58.7]} 32... Bxd4 {[%clk 0:01:18.5]} 33. exd4 {[%clk 0:02:00.6]}
33... Ne4 {[%clk 0:01:17.3]} 34. Bd3 {[%clk 0:01:56.4]} 34... Rd7 {[%clk
0:01:11.4]} 35. Re3 {[%clk 0:01:42.4]} 35... b3 {[%clk 0:01:08.3]} 36. Bxe4
{[%clk 0:01:41.2]} 36... Bxe4 {[%clk 0:01:08.8]} 37. Rxb3 {[%clk 0:01:42.7]}
37... Bd5 {[%clk 0:01:07.6]} 38. Re1 {[%clk 0:01:44]} 38... Qf7 {[%clk
0:00:54.5]} 39. Rbe3 {[%clk 0:01:39.9]} 39... Qf5 {[%clk 0:00:44.8]} 40. Re7+
{[%clk 0:01:40]} 40... Kg8 {[%clk 0:00:45.8]} 41. Re8+ {[%clk 0:01:40.7]} 41...
Kg7 {[%clk 0:00:46]} 42. R1e7+ {[%clk 0:01:42.2]} 42... Rxe7 {[%clk 0:00:44.8]}
43. Qxe7+ {[%clk 0:01:40.9]} 43... Bf7 {[%clk 0:00:43.6]} 44. Qf8+ {[%clk
0:01:37.6]} 44... Kf6 {[%clk 0:00:43.1]} 45. Qh8# {[%clk 0:01:39.5]} 1-0

[Event "*** MasterClass Titled Tuesday Blitz"]
[Site "Chess.com"]
[Date "2017.07.04"]
[Round "1"]
[White "spirals5"]
[Black "OparinGrigoriy"]
[Result "1/2-1/2"]
[WhiteElo "2364"]
[BlackElo "2757"]
[TimeControl "180+2"]
[EndTime "13:07:27 PDT"]
[Termination "Game drawn - insufficient material"]

1. e4 {[%clk 0:03:01.9]} 1... e5 {[%clk 0:03:00.4]} 2. Nf3 {[%clk 0:02:58.8]}
2... Nc6 {[%clk 0:03:02]} 3. Bc4 {[%clk 0:02:59]} 3... Nf6 {[%clk 0:03:02.3]} 4.
d3 {[%clk 0:02:59.5]} 4... Be7 {[%clk 0:03:03]} 5. O-O {[%clk 0:02:59.6]} 5...
O-O {[%clk 0:03:04.5]} 6. a3 {[%clk 0:02:59.8]} 6... d6 {[%clk 0:03:05.3]} 7. h3
{[%clk 0:03:00.1]} 7... Kh8 {[%clk 0:03:05.5]} 8. Nc3 {[%clk 0:02:59.5]} 8...
Nd7 {[%clk 0:03:06.5]} 9. b4 {[%clk 0:02:59.8]} 9... Nb6 {[%clk 0:03:05.6]} 10.
Bb3 {[%clk 0:03:00]} 10... f5 {[%clk 0:03:06.2]} 11. exf5 {[%clk 0:03:00.2]}
11... Bxf5 {[%clk 0:03:06.6]} 12. Be3 {[%clk 0:03:00.4]} 12... Qd7 {[%clk
0:03:00.4]} 13. Nd5 {[%clk 0:02:53]} 13... Rae8 {[%clk 0:02:54.6]} 14. Nxe7
{[%clk 0:02:51.8]} 14... Nxe7 {[%clk 0:02:55.5]} 15. Nh4 {[%clk 0:02:48.1]}
15... Be6 {[%clk 0:02:51.2]} 16. Bxe6 {[%clk 0:02:48.1]} 16... Qxe6 {[%clk
0:02:53.1]} 17. Qg4 {[%clk 0:02:44]} 17... Qf7 {[%clk 0:02:48.8]} 18. c4 {[%clk
0:02:39.7]} 18... Nf5 {[%clk 0:02:41.3]} 19. Qxf5 {[%clk 0:02:37.4]} 19... Qxf5
{[%clk 0:02:43.2]} 20. Nxf5 {[%clk 0:02:37.6]} 20... Rxf5 {[%clk 0:02:45.1]} 21.
Bxb6 {[%clk 0:02:35.6]} 21... axb6 {[%clk 0:02:47]} 22. f3 {[%clk 0:02:34]}
22... Ra8 {[%clk 0:02:46.8]} 23. a4 {[%clk 0:02:34.4]} 23... Kg8 {[%clk
0:02:47]} 24. Rf2 {[%clk 0:02:33.7]} 24... Kf7 {[%clk 0:02:47.7]} 25. Rfa2
{[%clk 0:02:34.1]} 25... Ke6 {[%clk 0:02:45.3]} 26. a5 {[%clk 0:02:34.5]} 26...
bxa5 {[%clk 0:02:46.3]} 27. Rxa5 {[%clk 0:02:34.4]} 27... Rxa5 {[%clk
0:02:46.9]} 28. Rxa5 {[%clk 0:02:34.4]} 28... b6 {[%clk 0:02:38.4]} 29. Ra7
{[%clk 0:02:30]} 29... Kd7 {[%clk 0:02:39.1]} 30. b5 {[%clk 0:02:25.8]} 30...
Rf4 {[%clk 0:02:31.6]} 31. Kf2 {[%clk 0:02:24.8]} 31... Rd4 {[%clk 0:02:32.7]}
32. Ke3 {[%clk 0:02:23.6]} 32... d5 {[%clk 0:02:34.3]} 33. cxd5 {[%clk
0:02:21.2]} 33... Rxd5 {[%clk 0:02:36.2]} 34. Ra8 {[%clk 0:02:21.7]} 34... Rxb5
{[%clk 0:02:26.5]} 35. Rg8 {[%clk 0:02:20.8]} 35... g6 {[%clk 0:02:27.3]} 36.
Rg7+ {[%clk 0:02:21.3]} 36... Kd6 {[%clk 0:02:28.7]} 37. Rxh7 {[%clk 0:02:22.2]}
37... Rb2 {[%clk 0:02:30.2]} 38. g4 {[%clk 0:02:21.8]} 38... Rh2 {[%clk
0:02:28.7]} 39. h4 {[%clk 0:02:22]} 39... b5 {[%clk 0:02:28.2]} 40. Rh6 {[%clk
0:02:19.3]} 40... Kd5 {[%clk 0:02:28.8]} 41. Rxg6 {[%clk 0:02:13.6]} 41... Rxh4
{[%clk 0:02:29.7]} 42. Rg7 {[%clk 0:02:13.4]} 42... c5 {[%clk 0:02:29.4]} 43.
Rb7 {[%clk 0:02:12.4]} 43... b4 {[%clk 0:02:30.4]} 44. Rb8 {[%clk 0:02:10.7]}
44... Rh1 {[%clk 0:02:29.9]} 45. Rd8+ {[%clk 0:02:09.9]} 45... Kc6 {[%clk
0:02:30.7]} 46. Rc8+ {[%clk 0:02:10.6]} 46... Kd6 {[%clk 0:02:31.9]} 47. Rd8+
{[%clk 0:02:11.1]} 47... Kc7 {[%clk 0:02:33.3]} 48. Rd5 {[%clk 0:02:11.3]} 48...
Kc6 {[%clk 0:02:34.5]} 49. Rd8 {[%clk 0:02:09.2]} 49... b3 {[%clk 0:02:25.9]}
50. Rb8 {[%clk 0:02:09.3]} 50... Rb1 {[%clk 0:02:27.3]} 51. g5 {[%clk
0:02:09.4]} 51... b2 {[%clk 0:02:25]} 52. Kd2 {[%clk 0:02:03.2]} 52... Rf1
{[%clk 0:02:17]} 53. Rxb2 {[%clk 0:02:02.4]} 53... Rxf3 {[%clk 0:02:18.4]} 54.
Rb8 {[%clk 0:01:58.6]} 54... Rg3 {[%clk 0:02:19.7]} 55. Rg8 {[%clk 0:01:57.9]}
55... Kd5 {[%clk 0:02:19.5]} 56. g6 {[%clk 0:01:56.8]} 56... Ke6 {[%clk
0:02:20.5]} 57. g7 {[%clk 0:01:54.1]} 57... Kf6 {[%clk 0:02:21.5]} 58. Rc8
{[%clk 0:01:53.4]} 58... Rxg7 {[%clk 0:02:21.1]} 59. Rxc5 {[%clk 0:01:53.9]}
59... Rg4 {[%clk 0:02:22.5]} 60. Ke3 {[%clk 0:01:52]} 60... Ra4 {[%clk
0:02:22.9]} 61. Rc8 {[%clk 0:01:51.4]} 61... Ra1 {[%clk 0:02:22.7]} 62. Rf8+
{[%clk 0:01:50.4]} 62... Ke7 {[%clk 0:02:23.7]} 63. Rh8 {[%clk 0:01:49.9]} 63...
Re1+ {[%clk 0:02:24]} 64. Kd2 {[%clk 0:01:49.6]} 64... Rg1 {[%clk 0:02:25]} 65.
Rh6 {[%clk 0:01:48.5]} 65... Kd7 {[%clk 0:02:25.3]} 66. Ke3 {[%clk 0:01:48]}
66... Re1+ {[%clk 0:02:26.2]} 67. Kd2 {[%clk 0:01:48.7]} 67... Rf1 {[%clk
0:02:27.8]} 68. Ke3 {[%clk 0:01:48.9]} 68... Rg1 {[%clk 0:02:29.5]} 69. Ke4
{[%clk 0:01:48.1]} 69... Re1+ {[%clk 0:02:30.2]} 70. Kd5 {[%clk 0:01:46.8]}
70... Re3 {[%clk 0:02:31.2]} 71. Rh7+ {[%clk 0:01:47.2]} 71... Ke8 {[%clk
0:02:31.1]} 72. Rh5 {[%clk 0:01:44.7]} 72... Kf7 {[%clk 0:02:30.7]} 73. Rxe5
{[%clk 0:01:44.5]} 73... Rxd3+ {[%clk 0:02:32.2]} 74. Ke4 {[%clk 0:01:45.3]}
74... Rd6 {[%clk 0:02:32.2]} 75. Ra5 {[%clk 0:01:42.3]} 75... Rf6 {[%clk
0:02:34.1]} 76. Re5 {[%clk 0:01:40]} 76... Re6 {[%clk 0:02:34.6]} 77. Rxe6
{[%clk 0:01:40.7]} 77... Kxe6 {[%clk 0:02:36.5]} 1/2-1/2

[Event "*** MasterClass Titled Tuesday Blitz"]
[Site "Chess.com"]
[Date "2017.07.04"]
[Round "1"]
[White "SipkeErnst"]
[Black "peteseeger"]
[Result "0-1"]
[WhiteElo "2371"]
[BlackElo "2144"]
[TimeControl "180+2"]
[EndTime "13:07:50 PDT"]
[Termination "peteseeger won on time"]

1. d4 {[%clk 0:02:43.3]} 1... g6 {[%clk 0:02:59.8]} 2. Nf3 {[%clk 0:02:43.4]}
2... Bg7 {[%clk 0:03:00.5]} 3. c4 {[%clk 0:02:44.9]} 3... d6 {[%clk 0:03:01.4]}
4. Nc3 {[%clk 0:02:43.5]} 4... f5 {[%clk 0:02:59.5]} 5. Bf4 {[%clk 0:02:42.9]}
5... Nf6 {[%clk 0:02:57.7]} 6. e3 {[%clk 0:02:43.1]} 6... O-O {[%clk 0:02:57.5]}
7. Be2 {[%clk 0:02:42.4]} 7... Nc6 {[%clk 0:02:55.5]} 8. d5 {[%clk 0:02:35.7]}
8... e5 {[%clk 0:02:53.8]} 9. dxc6 {[%clk 0:02:26.3]} 9... exf4 {[%clk
0:02:54.3]} 10. cxb7 {[%clk 0:02:27.1]} 10... Bxb7 {[%clk 0:02:55.2]} 11. exf4
{[%clk 0:02:28.6]} 11... Ne4 {[%clk 0:02:52.7]} 12. Nd5 {[%clk 0:02:17.5]} 12...
c6 {[%clk 0:02:36.9]} 13. Qb3 {[%clk 0:02:15.1]} 13... Qa5+ {[%clk 0:02:06.2]}
14. Qb4 {[%clk 0:01:58.4]} 14... Qxb4+ {[%clk 0:02:03.8]} 15. Nxb4 {[%clk
0:01:59]} 15... Bxb2 {[%clk 0:02:04.1]} 16. Rb1 {[%clk 0:01:59.9]} 16... Bc3+
{[%clk 0:02:03]} 17. Kf1 {[%clk 0:02:00.8]} 17... Rab8 {[%clk 0:01:59.7]} 18.
Nc2 {[%clk 0:01:57.5]} 18... c5 {[%clk 0:01:53]} 19. h4 {[%clk 0:01:51.7]} 19...
Bc6 {[%clk 0:01:52.8]} 20. Rb3 {[%clk 0:01:15.8]} 20... Rxb3 {[%clk 0:01:41.5]}
21. axb3 {[%clk 0:01:17.7]} 21... Rb8 {[%clk 0:01:41.8]} 22. g3 {[%clk
0:01:10.8]} 22... Rxb3 {[%clk 0:01:41.1]} 23. Kg2 {[%clk 0:01:11.2]} 23... a5
{[%clk 0:01:40.5]} 24. Ne3 {[%clk 0:01:06.6]} 24... a4 {[%clk 0:01:36.1]} 25.
Bd1 {[%clk 0:00:59.2]} 25... Rb2 {[%clk 0:01:29.8]} 26. Nc2 {[%clk 0:00:57.3]}
26... Bb4 {[%clk 0:01:19.9]} 27. h5 {[%clk 0:00:45.2]} 27... a3 {[%clk
0:01:14.2]} 28. hxg6 {[%clk 0:00:46.1]} 28... hxg6 {[%clk 0:01:15.2]} 29. Rh4
{[%clk 0:00:29]} 29... Nc3 {[%clk 0:01:07.9]} 30. Nxa3 {[%clk 0:00:08.9]} 30...
Bxa3 {[%clk 0:01:02.6]} 31. Kh3 {[%clk 0:00:10.1]} 31... Nxd1 {[%clk 0:01:01.1]}
32. Ng5 {[%clk 0:00:11.8]} 32... Nxf2+ {[%clk 0:00:57.9]} 33. Kh2 {[%clk
0:00:11.8]} 33... Ng4+ {[%clk 0:00:44.5]} 0-1

[Event "*** MasterClass Titled Tuesday Blitz"]
[Site "Chess.com"]
[Date "2017.07.04"]
[Round "1"]
[White "AndrewDGreen"]
[Black "GMKrikor"]
[Result "0-1"]
[WhiteElo "2205"]
[BlackElo "2467"]
[TimeControl "180+2"]
[EndTime "13:07:51 PDT"]
[Termination "GMKrikor won by resignation"]

1. d4 {[%clk 0:02:59.6]} 1... Nf6 {[%clk 0:03:00.7]} 2. Nf3 {[%clk 0:03:00]}
2... g6 {[%clk 0:03:00.2]} 3. Nc3 {[%clk 0:03:00.6]} 3... d5 {[%clk 0:03:00.8]}
4. Bf4 {[%clk 0:03:00.7]} 4... Bg7 {[%clk 0:03:00.6]} 5. e3 {[%clk 0:03:00.4]}
5... O-O {[%clk 0:02:56.9]} 6. Be2 {[%clk 0:03:00.7]} 6... c5 {[%clk 0:02:56.3]}
7. O-O {[%clk 0:03:00]} 7... cxd4 {[%clk 0:02:56.3]} 8. exd4 {[%clk 0:03:01.9]}
8... Nc6 {[%clk 0:02:57.5]} 9. Ne5 {[%clk 0:03:01.7]} 9... Bf5 {[%clk
0:02:54.6]} 10. Nxc6 {[%clk 0:02:54.2]} 10... bxc6 {[%clk 0:02:55.4]} 11. Na4
{[%clk 0:02:52.7]} 11... Nd7 {[%clk 0:02:49]} 12. c3 {[%clk 0:02:47.7]} 12...
Re8 {[%clk 0:02:38.1]} 13. Re1 {[%clk 0:02:44.8]} 13... e5 {[%clk 0:02:24.9]}
14. dxe5 {[%clk 0:02:44]} 14... Nxe5 {[%clk 0:02:26.4]} 15. Bf1 {[%clk
0:02:38.1]} 15... Qa5 {[%clk 0:02:06.4]} 16. b4 {[%clk 0:02:11.3]} 16... Qd8
{[%clk 0:02:05.9]} 17. Nc5 {[%clk 0:02:00.9]} 17... Qf6 {[%clk 0:01:59.6]} 18.
Qd2 {[%clk 0:01:50.9]} 18... Nc4 {[%clk 0:01:53.9]} 19. Bxc4 {[%clk 0:01:42.7]}
19... dxc4 {[%clk 0:01:55.8]} 20. Rac1 {[%clk 0:00:56.2]} 20... Rxe1+ {[%clk
0:01:30.1]} 21. Qxe1 {[%clk 0:00:58.1]} 21... g5 {[%clk 0:01:24.5]} 22. Be3
{[%clk 0:00:53.8]} 22... Re8 {[%clk 0:01:14.4]} 23. Qf1 {[%clk 0:00:47]} 23...
Be6 {[%clk 0:00:44.4]} 24. Bd4 {[%clk 0:00:36.5]} 24... Qf4 {[%clk 0:00:35.5]}
25. g3 {[%clk 0:00:21.4]} 25... Qf3 {[%clk 0:00:28.2]} 26. Nxe6 {[%clk
0:00:17.4]} 26... Rxe6 {[%clk 0:00:29.4]} 27. Qxc4 {[%clk 0:00:17.7]} 27... Re2
{[%clk 0:00:29.1]} 28. a4 {[%clk 0:00:12.5]} 28... h5 {[%clk 0:00:28.9]} 29.
Bxg7 {[%clk 0:00:12.1]} 29... Qxf2+ {[%clk 0:00:28.9]} 0-1

[Event "*** MasterClass Titled Tuesday Blitz"]
[Site "Chess.com"]
[Date "2017.07.04"]
[Round "1"]
[White "blitzcopter"]
[Black "DanielRensch"]
[Result "0-1"]
[WhiteElo "2029"]
[BlackElo "2403"]
[TimeControl "180+2"]
[EndTime "13:08:13 PDT"]
[Termination "DanielRensch won by resignation"]

1. e4 {[%clk 0:03:01.9]} 1... c5 {[%clk 0:02:48.8]} 2. Nc3 {[%clk 0:03:02.5]}
2... Nc6 {[%clk 0:02:44.6]} 3. g3 {[%clk 0:03:03.8]} 3... g6 {[%clk 0:02:36.3]}
4. Bg2 {[%clk 0:03:04.5]} 4... Bg7 {[%clk 0:02:37.2]} 5. d3 {[%clk 0:03:03.5]}
5... d6 {[%clk 0:02:38.5]} 6. Be3 {[%clk 0:03:03.3]} 6... Nd4 {[%clk 0:02:38.3]}
7. Qd2 {[%clk 0:03:02.6]} 7... Rb8 {[%clk 0:02:39.1]} 8. Nge2 {[%clk 0:02:57.3]}
8... b5 {[%clk 0:02:39.7]} 9. O-O {[%clk 0:02:55.3]} 9... e6 {[%clk 0:02:39.8]}
10. Nc1 {[%clk 0:02:54.1]} 10... Ne7 {[%clk 0:02:36.3]} 11. Nd1 {[%clk
0:02:49.9]} 11... O-O {[%clk 0:02:36.7]} 12. c3 {[%clk 0:02:50.8]} 12... Ndc6
{[%clk 0:02:38.3]} 13. Bh6 {[%clk 0:02:43.3]} 13... b4 {[%clk 0:02:35.2]} 14.
Bxg7 {[%clk 0:02:40.4]} 14... Kxg7 {[%clk 0:02:34.9]} 15. f4 {[%clk 0:02:36]}
15... a5 {[%clk 0:02:28]} 16. f5 {[%clk 0:01:06.5]} 16... exf5 {[%clk
0:02:27.5]} 17. exf5 {[%clk 0:01:08.4]} 17... f6 {[%clk 0:02:23.4]} 18. fxg6
{[%clk 0:01:01.4]} 18... hxg6 {[%clk 0:02:25.3]} 19. Ne2 {[%clk 0:00:52]} 19...
Ba6 {[%clk 0:02:20.7]} 20. Nf4 {[%clk 0:00:51.7]} 20... Bc8 {[%clk 0:02:15.9]}
21. Ne3 {[%clk 0:00:39.8]} 21... Ne5 {[%clk 0:02:15.3]} 22. d4 {[%clk 0:00:38]}
22... Nf7 {[%clk 0:02:15]} 23. Qd3 {[%clk 0:00:24.4]} 23... bxc3 {[%clk
0:02:13.8]} 24. bxc3 {[%clk 0:00:23.7]} 24... cxd4 {[%clk 0:02:15.1]} 25. cxd4
{[%clk 0:00:25.6]} 25... Rb2 {[%clk 0:02:15]} 26. Nc4 {[%clk 0:00:25]} 26... Rb4
{[%clk 0:02:15.1]} 27. a3 {[%clk 0:00:25.1]} 27... Rb8 {[%clk 0:02:14]} 28. Rae1
{[%clk 0:00:23.8]} 28... Bf5 {[%clk 0:02:14.7]} 29. Be4 {[%clk 0:00:21]} 29...
Re8 {[%clk 0:01:54.4]} 30. Bxf5 {[%clk 0:00:21.6]} 30... Nxf5 {[%clk 0:01:56.3]}
31. Ne6+ {[%clk 0:00:22.1]} 31... Rxe6 {[%clk 0:01:57.8]} 32. Rxe6 {[%clk
0:00:23.4]} 32... Qd7 {[%clk 0:01:57.8]} 33. d5 {[%clk 0:00:23]} 33... a4 {[%clk
0:01:55.1]} 34. Rxf5 {[%clk 0:00:20.8]} 34... gxf5 {[%clk 0:01:53.5]} 35. Qxf5
{[%clk 0:00:22.7]} 35... Qd8 {[%clk 0:01:52.3]} 36. Qg4+ {[%clk 0:00:21.3]}
36... Ng5 {[%clk 0:01:51.4]} 37. h4 {[%clk 0:00:19.5]} 37... Qc8 {[%clk
0:01:52.6]} 38. hxg5 {[%clk 0:00:20.4]} 38... Qc5+ {[%clk 0:01:52.7]} 39. Kh2
{[%clk 0:00:19.9]} 39... Qf2+ {[%clk 0:01:52.6]} 40. Kh3 {[%clk 0:00:19]} 40...
Rh8+ {[%clk 0:01:52.8]} 41. Qh4 {[%clk 0:00:17.5]} 41... Rxh4+ {[%clk
0:01:53.7]} 42. gxh4 {[%clk 0:00:19.4]} 42... Qf3+ {[%clk 0:01:54.5]} 43. Kh2
{[%clk 0:00:20.1]} 43... fxg5 {[%clk 0:01:55.8]} 44. hxg5 {[%clk 0:00:17.8]}
44... Qxd5 {[%clk 0:01:56.6]} 45. Re7+ {[%clk 0:00:15.2]} 45... Kf8 {[%clk
0:01:57.5]} 46. Rc7 {[%clk 0:00:16.2]} 46... Qxg5 {[%clk 0:01:57]} 47. Nb6
{[%clk 0:00:13.4]} 47... d5 {[%clk 0:01:52.8]} 48. Rc8+ {[%clk 0:00:04.5]} 48...
Kg7 {[%clk 0:01:53.4]} 49. Rc7+ {[%clk 0:00:06.4]} 49... Kh6 {[%clk 0:01:54.4]}
50. Rc6+ {[%clk 0:00:07.3]} 50... Kh5 {[%clk 0:01:55]} 51. Rc5 {[%clk
0:00:08.5]} 51... Qf4+ {[%clk 0:01:52.2]} 52. Kh1 {[%clk 0:00:05.7]} 52... Qf1+
{[%clk 0:01:53]} 53. Kh2 {[%clk 0:00:06.9]} 53... Qf2+ {[%clk 0:01:54.9]} 0-1

[Event "*** MasterClass Titled Tuesday Blitz"]
[Site "Chess.com"]
[Date "2017.07.04"]
[Round "1"]
[White "hypert"]
[Black "Yaacovn"]
[Result "0-1"]
[WhiteElo "2322"]
[BlackElo "2679"]
[TimeControl "180+2"]
[EndTime "13:08:15 PDT"]
[Termination "Yaacovn won by checkmate"]

1. e4 {[%clk 0:03:01.9]} 1... c6 {[%clk 0:03:01.2]} 2. d4 {[%clk 0:03:02]} 2...
d5 {[%clk 0:03:02.8]} 3. Nc3 {[%clk 0:03:03.3]} 3... dxe4 {[%clk 0:03:03.5]} 4.
Nxe4 {[%clk 0:03:05.2]} 4... Nf6 {[%clk 0:03:04.6]} 5. Nxf6+ {[%clk 0:03:05.7]}
5... gxf6 {[%clk 0:03:05.9]} 6. Nf3 {[%clk 0:03:06.8]} 6... Bg4 {[%clk
0:03:06.5]} 7. c3 {[%clk 0:03:03.4]} 7... Qd5 {[%clk 0:03:07]} 8. Be2 {[%clk
0:03:03.3]} 8... Nd7 {[%clk 0:03:07.8]} 9. Be3 {[%clk 0:03:03.7]} 9... e6 {[%clk
0:03:08.8]} 10. Qb3 {[%clk 0:03:04.1]} 10... O-O-O {[%clk 0:03:09.3]} 11. c4
{[%clk 0:02:58.5]} 11... Qa5+ {[%clk 0:03:09.8]} 12. Bd2 {[%clk 0:02:58.8]}
12... Qc7 {[%clk 0:03:10.5]} 13. h3 {[%clk 0:02:59]} 13... Bh5 {[%clk
0:03:11.1]} 14. g4 {[%clk 0:02:55.4]} 14... Bg6 {[%clk 0:03:11.9]} 15. Nh4
{[%clk 0:02:28.2]} 15... Bd6 {[%clk 0:03:11.8]} 16. Nxg6 {[%clk 0:02:27.4]}
16... hxg6 {[%clk 0:03:12.7]} 17. h4 {[%clk 0:02:26.3]} 17... Bf4 {[%clk
0:03:12.6]} 18. O-O-O {[%clk 0:02:24.9]} 18... Bxd2+ {[%clk 0:03:12.9]} 19. Rxd2
{[%clk 0:02:23.9]} 19... f5 {[%clk 0:03:12.7]} 20. gxf5 {[%clk 0:02:16.7]} 20...
gxf5 {[%clk 0:03:13.2]} 21. Qe3 {[%clk 0:02:07.6]} 21... Nf6 {[%clk 0:03:00.8]}
22. Rdd1 {[%clk 0:02:07.1]} 22... Rdg8 {[%clk 0:02:58.1]} 23. h5 {[%clk
0:02:03.9]} 23... Ng4 {[%clk 0:02:54.2]} 24. Bxg4 {[%clk 0:02:03.1]} 24... Rxg4
{[%clk 0:02:54.8]} 25. Rdg1 {[%clk 0:01:56]} 25... Rxh5 {[%clk 0:02:51.3]} 26.
Rxh5 {[%clk 0:01:47]} 26... Rxg1+ {[%clk 0:02:51.7]} 27. Kc2 {[%clk 0:01:48.5]}
27... Qa5 {[%clk 0:02:45]} 28. Rh8+ {[%clk 0:01:42.6]} 28... Kd7 {[%clk
0:02:32]} 29. Qb3 {[%clk 0:01:26.4]} 29... Qb6 {[%clk 0:02:22.3]} 30. Qxb6
{[%clk 0:00:34.7]} 30... axb6 {[%clk 0:02:05.6]} 31. Rb8 {[%clk 0:00:36.6]}
31... Kc7 {[%clk 0:02:06.1]} 32. Rf8 {[%clk 0:00:37.8]} 32... Rg7 {[%clk
0:02:06.1]} 33. Kd3 {[%clk 0:00:37.5]} 33... Rh7 {[%clk 0:01:49.6]} 34. a4
{[%clk 0:00:37.9]} 34... Rh3+ {[%clk 0:01:45]} 35. Kd2 {[%clk 0:00:38.8]} 35...
Rh7 {[%clk 0:01:40.5]} 36. b3 {[%clk 0:00:35.8]} 36... c5 {[%clk 0:01:40]} 37.
dxc5 {[%clk 0:00:27.9]} 37... bxc5 {[%clk 0:01:40.8]} 38. a5 {[%clk 0:00:29.5]}
38... Kd6 {[%clk 0:01:38]} 39. Rb8 {[%clk 0:00:29]} 39... Kc7 {[%clk 0:01:34.8]}
40. Rf8 {[%clk 0:00:29.6]} 40... f4 {[%clk 0:01:33.4]} 41. Ke2 {[%clk
0:00:25.9]} 41... Kd6 {[%clk 0:01:31.9]} 42. Rb8 {[%clk 0:00:25.2]} 42... f5
{[%clk 0:01:32.8]} 43. Kf3 {[%clk 0:00:22.9]} 43... e5 {[%clk 0:01:33.1]} 44.
Rf8 {[%clk 0:00:21.7]} 44... Ke6 {[%clk 0:01:30.4]} 45. Ke2 {[%clk 0:00:21.6]}
45... e4 {[%clk 0:01:30.1]} 46. Rc8 {[%clk 0:00:21.8]} 46... Rh2 {[%clk
0:01:29.4]} 47. Rxc5 {[%clk 0:00:21.6]} 47... e3 {[%clk 0:01:29.3]} 48. Rb5
{[%clk 0:00:23]} 48... Rxf2+ {[%clk 0:01:29.3]} 49. Ke1 {[%clk 0:00:24.7]} 49...
Ra2 {[%clk 0:01:30]} 50. Rxb7 {[%clk 0:00:23.8]} 50... f3 {[%clk 0:01:30.7]} 51.
Rb6+ {[%clk 0:00:23.8]} 51... Ke5 {[%clk 0:01:31.5]} 52. Rb5+ {[%clk 0:00:23.8]}
52... Ke4 {[%clk 0:01:32.6]} 53. Kd1 {[%clk 0:00:24.6]} 53... f2 {[%clk
0:01:33.3]} 54. Rb8 {[%clk 0:00:24.5]} 54... f1=Q# {[%clk 0:01:33.3]} 0-1